Workbook

Sheet Zoznam inventára
K2: Chcete zvýrazniť položky na doobjednanie? | L2: Áno
B3: Na doobjednanie | C3: ID inventára | D3: Názov | E3: Popis | F3: Jednotková cena | G3: Množstvo na sklade | H3: Hodnota inventára | I3: Úroveň opätovnej objednávky | J3: Čas opätovnej objednávky v dňoch | K3: Množstvo v opätovnej objednávke | L3: Zrušené?
B4: =IFERROR((Zoznam_inventára_tabuľka[[#This Row],[Množstvo na sklade]]<=Zoznam_inventára_tabuľka[[#This Row],[Úroveň opätovnej objednávky]])*(Zoznam_inventára_tabuľka[[#This Row],[Zrušené?]]="")*valZvýrazniť,0) -> 1 | C4: IN0001 | D4: Položka 1 | E4: Popis 1 | F4: 51.00 EUR | G4: 25 | H4: =Zoznam_inventára_tabuľka[[#This Row],[Jednotková cena]]*Zoznam_inventára_tabuľka[[#This Row],[Množstvo na sklade]] -> 1,275.00 EUR | I4: 29 | J4: 13 | K4: 50
B5: =IFERROR((Zoznam_inventára_tabuľka[[#This Row],[Množstvo na sklade]]<=Zoznam_inventára_tabuľka[[#This Row],[Úroveň opätovnej objednávky]])*(Zoznam_inventára_tabuľka[[#This Row],[Zrušené?]]="")*valZvýrazniť,0) -> 1 | C5: IN0002 | D5: Položka 2 | E5: Popis 2 | F5: 93.00 EUR | G5: 132 | H5: =Zoznam_inventára_tabuľka[[#This Row],[Jednotková cena]]*Zoznam_inventára_tabuľka[[#This Row],[Množstvo na sklade]] -> 12,276.00 EUR | I5: 231 | J5: 4 | K5: 50
B6: =IFERROR((Zoznam_inventára_tabuľka[[#This Row],[Množstvo na sklade]]<=Zoznam_inventára_tabuľka[[#This Row],[Úroveň opätovnej objednávky]])*(Zoznam_inventára_tabuľka[[#This Row],[Zrušené?]]="")*valZvýrazniť,0) -> 0 | C6: IN0003 | D6: Položka 3 | E6: Popis 3 | F6: 57.00 EUR | G6: 151 | H6: =Zoznam_inventára_tabuľka[[#This Row],[Jednotková cena]]*Zoznam_inventára_tabuľka[[#This Row],[Množstvo na sklade]] -> 8,607.00 EUR | I6: 114 | J6: 11 | K6: 150
B7: =IFERROR((Zoznam_inventára_tabuľka[[#This Row],[Množstvo na sklade]]<=Zoznam_inventára_tabuľka[[#This Row],[Úroveň opätovnej objednávky]])*(Zoznam_inventára_tabuľka[[#This Row],[Zrušené?]]="")*valZvýrazniť,0) -> 0 | C7: IN0004 | D7: Položka 4 | E7: Popis 4 | F7: 19.00 EUR | G7: 186 | H7: =Zoznam_inventára_tabuľka[[#This Row],[Jednotková cena]]*Zoznam_inventára_tabuľka[[#This Row],[Množstvo na sklade]] -> 3,534.00 EUR | I7: 158 | J7: 6 | K7: 50
B8: =IFERROR((Zoznam_inventára_tabuľka[[#This Row],[Množstvo na sklade]]<=Zoznam_inventára_tabuľka[[#This Row],[Úroveň opätovnej objednávky]])*(Zoznam_inventára_tabuľka[[#This Row],[Zrušené?]]="")*valZvýrazniť,0) -> 0 | C8: IN0005 | D8: Položka 5 | E8: Popis 5 | F8: 75.00 EUR | G8: 62 | H8: =Zoznam_inventára_tabuľka[[#This Row],[Jednotková cena]]*Zoznam_inventára_tabuľka[[#This Row],[Množstvo na sklade]] -> 4,650.00 EUR | I8: 39 | J8: 12 | K8: 50
B9: =IFERROR((Zoznam_inventára_tabuľka[[#This Row],[Množstvo na sklade]]<=Zoznam_inventára_tabuľka[[#This Row],[Úroveň opätovnej objednávky]])*(Zoznam_inventára_tabuľka[[#This Row],[Zrušené?]]="")*valZvýrazniť,0) -> 1 | C9: IN0006 | D9: Položka 6 | E9: Popis 6 | F9: 11.00 EUR | G9: 5 | H9: =Zoznam_inventára_tabuľka[[#This Row],[Jednotková cena]]*Zoznam_inventára_tabuľka[[#This Row],[Množstvo na sklade]] -> 55.00 EUR | I9: 9 | J9: 13 | K9: 150
B10: =IFERROR((Zoznam_inventára_tabuľka[[#This Row],[Množstvo na sklade]]<=Zoznam_inventára_tabuľka[[#This Row],[Úroveň opätovnej objednávky]])*(Zoznam_inventára_tabuľka[[#This Row],[Zrušené?]]="")*valZvýrazniť,0) -> 0 | C10: IN0007 | D10: Položka 7 | E10: Popis 7 | F10: 56.00 EUR | G10: 58 | H10: =Zoznam_inventára_tabuľka[[#This Row],[Jednotková cena]]*Zoznam_inventára_tabuľka[[#This Row],[Množstvo na sklade]] -> 3,248.00 EUR | I10: 109 | J10: 7 | K10: 100 | L10: Áno
B11: =IFERROR((Zoznam_inventára_tabuľka[[#This Row],[Množstvo na sklade]]<=Zoznam_inventára_tabuľka[[#This Row],[Úroveň opätovnej objednávky]])*(Zoznam_inventára_tabuľka[[#This Row],[Zrušené?]]="")*valZvýrazniť,0) -> 1 | C11: IN0008 | D11: Položka 8 | E11: Popis 8 | F11: 38.00 EUR | G11: 101 | H11: =Zoznam_inventára_tabuľka[[#This Row],[Jednotková cena]]*Zoznam_inventára_tabuľka[[#This Row],[Množstvo na sklade]] -> 3,838.00 EUR | I11: 162 | J11: 3 | K11: 100
B12: =IFERROR((Zoznam_inventára_tabuľka[[#This Row],[Množstvo na sklade]]<=Zoznam_inventára_tabuľka[[#This Row],[Úroveň opätovnej objednávky]])*(Zoznam_inventára_tabuľka[[#This Row],[Zrušené?]]="")*valZvýrazniť,0) -> 0 | C12: IN0009 | D12: Položka 9 | E12: Popis 9 | F12: 59.00 EUR | G12: 122 | H12: =Zoznam_inventára_tabuľka[[#This Row],[Jednotková cena]]*Zoznam_inventára_tabuľka[[#This Row],[Množstvo na sklade]] -> 7,198.00 EUR | I12: 82 | J12: 3 | K12: 150
B13: =IFERROR((Zoznam_inventára_tabuľka[[#This Row],[Množstvo na sklade]]<=Zoznam_inventára_tabuľka[[#This Row],[Úroveň opätovnej objednávky]])*(Zoznam_inventára_tabuľka[[#This Row],[Zrušené?]]="")*valZvýrazniť,0) -> 1 | C13: IN0010 | D13: Položka 10 | E13: Popis 10 | F13: 50.00 EUR | G13: 175 | H13: =Zoznam_inventára_tabuľka[[#This Row],[Jednotková cena]]*Zoznam_inventára_tabuľka[[#This Row],[Množstvo na sklade]] -> 8,750.00 EUR | I13: 283 | J13: 8 | K13: 150
B14: =IFERROR((Zoznam_inventára_tabuľka[[#This Row],[Množstvo na sklade]]<=Zoznam_inventára_tabuľka[[#This Row],[Úroveň opätovnej objednávky]])*(Zoznam_inventára_tabuľka[[#This Row],[Zrušené?]]="")*valZvýrazniť,0) -> 1 | C14: IN0011 | D14: Položka 11 | E14: Popis 11 | F14: 59.00 EUR | G14: 176 | H14: =Zoznam_inventára_tabuľka[[#This Row],[Jednotková cena]]*Zoznam_inventára_tabuľka[[#This Row],[Množstvo na sklade]] -> 10,384.00 EUR | I14: 229 | J14: 1 | K14: 100
B15: =IFERROR((Zoznam_inventára_tabuľka[[#This Row],[Množstvo na sklade]]<=Zoznam_inventára_tabuľka[[#This Row],[Úroveň opätovnej objednávky]])*(Zoznam_inventára_tabuľka[[#This Row],[Zrušené?]]="")*valZvýrazniť,0) -> 1 | C15: IN0012 | D15: Položka 12 | E15: Popis 12 | F15: 18.00 EUR | G15: 22 | H15: =Zoznam_inventára_tabuľka[[#This Row],[Jednotková cena]]*Zoznam_inventára_tabuľka[[#This Row],[Množstvo na sklade]] -> 396.00 EUR | I15: 36 | J15: 12 | K15: 50
B16: =IFERROR((Zoznam_inventára_tabuľka[[#This Row],[Množstvo na sklade]]<=Zoznam_inventára_tabuľka[[#This Row],[Úroveň opätovnej objednávky]])*(Zoznam_inventára_tabuľka[[#This Row],[Zrušené?]]="")*valZvýrazniť,0) -> 1 | C16: IN0013 | D16: Položka 13 | E16: Popis 13 | F16: 26.00 EUR | G16: 72 | H16: =Zoznam_inventára_tabuľka[[#This Row],[Jednotková cena]]*Zoznam_inventára_tabuľka[[#This Row],[Množstvo na sklade]] -> 1,872.00 EUR | I16: 102 | J16: 9 | K16: 100
B17: =IFERROR((Zoznam_inventára_tabuľka[[#This Row],[Množstvo na sklade]]<=Zoznam_inventára_tabuľka[[#This Row],[Úroveň opätovnej objednávky]])*(Zoznam_inventára_tabuľka[[#This Row],[Zrušené?]]="")*valZvýrazniť,0) -> 1 | C17: IN0014 | D17: Položka 14 | E17: Popis 14 | F17: 42.00 EUR | G17: 62 | H17: =Zoznam_inventára_tabuľka[[#This Row],[Jednotková cena]]*Zoznam_inventára_tabuľka[[#This Row],[Množstvo na sklade]] -> 2,604.00 EUR | I17: 83 | J17: 2 | K17: 100
B18: =IFERROR((Zoznam_inventára_tabuľka[[#This Row],[Množstvo na sklade]]<=Zoznam_inventára_tabuľka[[#This Row],[Úroveň opätovnej objednávky]])*(Zoznam_inventára_tabuľka[[#This Row],[Zrušené?]]="")*valZvýrazniť,0) -> 0 | C18: IN0015 | D18: Položka 15 | E18: Popis 15 | F18: 32.00 EUR | G18: 46 | H18: =Zoznam_inventára_tabuľka[[#This Row],[Jednotková cena]]*Zoznam_inventára_tabuľka[[#This Row],[Množstvo na sklade]] -> 1,472.00 EUR | I18: 23 | J18: 15 | K18: 50
B19: =IFERROR((Zoznam_inventára_tabuľka[[#This Row],[Množstvo na sklade]]<=Zoznam_inventára_tabuľka[[#This Row],[Úroveň opätovnej objednávky]])*(Zoznam_inventára_tabuľka[[#This Row],[Zrušené?]]="")*valZvýrazniť,0) -> 1 | C19: IN0016 | D19: Položka 16 | E19: Popis 16 | F19: 90.00 EUR | G19: 96 | H19: =Zoznam_inventára_tabuľka[[#This Row],[Jednotková cena]]*Zoznam_inventára_tabuľka[[#This Row],[Množstvo na sklade]] -> 8,640.00 EUR | I19: 180 | J19: 3 | K19: 50
B20: =IFERROR((Zoznam_inventára_tabuľka[[#This Row],[Množstvo na sklade]]<=Zoznam_inventára_tabuľka[[#This Row],[Úroveň opätovnej objednávky]])*(Zoznam_inventára_tabuľka[[#This Row],[Zrušené?]]="")*valZvýrazniť,0) -> 0 | C20: IN0017 | D20: Položka 17 | E20: Popis 17 | F20: 97.00 EUR | G20: 57 | H20: =Zoznam_inventára_tabuľka[[#This Row],[Jednotková cena]]*Zoznam_inventára_tabuľka[[#This Row],[Množstvo na sklade]] -> 5,529.00 EUR | I20: 98 | J20: 12 | K20: 50 | L20: Áno
B21: =IFERROR((Zoznam_inventára_tabuľka[[#This Row],[Množstvo na sklade]]<=Zoznam_inventára_tabuľka[[#This Row],[Úroveň opätovnej objednávky]])*(Zoznam_inventára_tabuľka[[#This Row],[Zrušené?]]="")*valZvýrazniť,0) -> 1 | C21: IN0018 | D21: Položka 18 | E21: Popis 18 | F21: 12.00 EUR | G21: 6 | H21: =Zoznam_inventára_tabuľka[[#This Row],[Jednotková cena]]*Zoznam_inventára_tabuľka[[#This Row],[Množstvo na sklade]] -> 72.00 EUR | I21: 7 | J21: 13 | K21: 50
B22: =IFERROR((Zoznam_inventára_tabuľka[[#This Row],[Množstvo na sklade]]<=Zoznam_inventára_tabuľka[[#This Row],[Úroveň opätovnej objednávky]])*(Zoznam_inventára_tabuľka[[#This Row],[Zrušené?]]="")*valZvýrazniť,0) -> 1 | C22: IN0019 | D22: Položka 19 | E22: Popis 19 | F22: 82.00 EUR | G22: 143 | H22: =Zoznam_inventára_tabuľka[[#This Row],[Jednotková cena]]*Zoznam_inventára_tabuľka[[#This Row],[Množstvo na sklade]] -> 11,726.00 EUR | I22: 164 | J22: 12 | K22: 150
B23: =IFERROR((Zoznam_inventára_tabuľka[[#This Row],[Množstvo na sklade]]<=Zoznam_inventára_tabuľka[[#This Row],[Úroveň opätovnej objednávky]])*(Zoznam_inventára_tabuľka[[#This Row],[Zrušené?]]="")*valZvýrazniť,0) -> 0 | C23: IN0020 | D23: Položka 20 | E23: Popis 20 | F23: 16.00 EUR | G23: 124 | H23: =Zoznam_inventára_tabuľka[[#This Row],[Jednotková cena]]*Zoznam_inventára_tabuľka[[#This Row],[Množstvo na sklade]] -> 1,984.00 EUR | I23: 113 | J23: 14 | K23: 50
B24: =IFERROR((Zoznam_inventára_tabuľka[[#This Row],[Množstvo na sklade]]<=Zoznam_inventára_tabuľka[[#This Row],[Úroveň opätovnej objednávky]])*(Zoznam_inventára_tabuľka[[#This Row],[Zrušené?]]="")*valZvýrazniť,0) -> 0 | C24: IN0021 | D24: Položka 21 | E24: Popis 21 | F24: 19.00 EUR | G24: 112 | H24: =Zoznam_inventára_tabuľka[[#This Row],[Jednotková cena]]*Zoznam_inventára_tabuľka[[#This Row],[Množstvo na sklade]] -> 2,128.00 EUR | I24: 75 | J24: 11 | K24: 50
B25: =IFERROR((Zoznam_inventára_tabuľka[[#This Row],[Množstvo na sklade]]<=Zoznam_inventára_tabuľka[[#This Row],[Úroveň opätovnej objednávky]])*(Zoznam_inventára_tabuľka[[#This Row],[Zrušené?]]="")*valZvýrazniť,0) -> 0 | C25: IN0022 | D25: Položka 22 | E25: Popis 22 | F25: 24.00 EUR | G25: 182 | H25: =Zoznam_inventára_tabuľka[[#This Row],[Jednotková cena]]*Zoznam_inventára_tabuľka[[#This Row],[Množstvo na sklade]] -> 4,368.00 EUR | I25: 132 | J25: 15 | K25: 150
B26: =IFERROR((Zoznam_inventára_tabuľka[[#This Row],[Množstvo na sklade]]<=Zoznam_inventára_tabuľka[[#This Row],[Úroveň opätovnej objednávky]])*(Zoznam_inventára_tabuľka[[#This Row],[Zrušené?]]="")*valZvýrazniť,0) -> 0 | C26: IN0023 | D26: Položka 23 | E26: Popis 23 | F26: 29.00 EUR | G26: 106 | H26: =Zoznam_inventára_tabuľka[[#This Row],[Jednotková cena]]*Zoznam_inventára_tabuľka[[#This Row],[Množstvo na sklade]] -> 3,074.00 EUR | I26: 142 | J26: 1 | K26: 150 | L26: Áno
B27: =IFERROR((Zoznam_inventára_tabuľka[[#This Row],[Množstvo na sklade]]<=Zoznam_inventára_tabuľka[[#This Row],[Úroveň opätovnej objednávky]])*(Zoznam_inventára_tabuľka[[#This Row],[Zrušené?]]="")*valZvýrazniť,0) -> 0 | C27: IN0024 | D27: Položka 24 | E27: Popis 24 | F27: 75.00 EUR | G27: 173 | H27: =Zoznam_inventára_tabuľka[[#This Row],[Jednotková cena]]*Zoznam_inventára_tabuľka[[#This Row],[Množstvo na sklade]] -> 12,975.00 EUR | I27: 127 | J27: 9 | K27: 100
B28: =IFERROR((Zoznam_inventára_tabuľka[[#This Row],[Množstvo na sklade]]<=Zoznam_inventára_tabuľka[[#This Row],[Úroveň opätovnej objednávky]])*(Zoznam_inventára_tabuľka[[#This Row],[Zrušené?]]="")*valZvýrazniť,0) -> 0 | C28: IN0025 | D28: Položka 25 | E28: Popis 25 | F28: 14.00 EUR | G28: 28 | H28: =Zoznam_inventára_tabuľka[[#This Row],[Jednotková cena]]*Zoznam_inventára_tabuľka[[#This Row],[Množstvo na sklade]] -> 392.00 EUR | I28: 21 | J28: 8 | K28: 50
